bitfinex-derivatives/quotes_SOLF0:USTF0_20250829
["timestamp","ask_amount","ask_price","bid_price","bid_amount"]
[1756481274551,7.51,209.35,209.27,4.3002]
[1756481275952,7.51,209.35,209.29,4.2998]
[1756481276151,144.99149328,209.39,209.29,4.2998]
[1756481277453,149.28939328,209.39,209.29,4.2998]
[1756481278057,149.28939328,209.39,209.28,7.18]
[1756481278058,4.2984,209.36,209.28,7.18]
[1756481278855,7.51,209.35,209.24,7.18]
[1756481279049,11.8088,209.35,209.27,4.3001]
[1756481279453,7.51,209.35,209.24,7.18]
[1756481279756,4.299,209.33,209.24,11.4807]
[1756481279964,4.299,209.33,209.24,7.18]
[1756481280562,22.95009328,209.35,209.24,7.18]
[1756481280757,72.14252828,209.46,209.24,7.18]
[1756481280758,7.51,209.42,209.3,4.2996]
[1756481281061,11.14149328,209.39,209.3,4.2996]
[1756481281262,11.14149328,209.39,209.24,66.9025]
[1756481281263,18.65149328,209.42,209.29,7.18]
[1756481281462,18.65149328,209.42,209.33,4.2989]
[1756481281463,7.51,209.42,209.33,4.2989]
[1756481281657,7.51,209.42,209.33,11.4789]
[1756481282662,328.29,209.47,209.33,7.18]
[1756481283959,126.34,209.46,209.33,7.18]
[1756481284560,126.34,209.46,209.35,4.2985]
[1756481285664,328.29,209.47,209.36,4.2982]
[1756481285866,328.29,209.47,209.31,11.14149328]
[1756481286062,18.65149328,209.52,209.35,11.14149328]
[1756481286365,7.51,209.52,209.44,4.2966]
[1756481286566,328.45,209.59,209.43,7.18]
[1756481286765,454.79,209.59,209.49,4.2956]
[1756481287164,454.79,209.59,209.47,7.12]
[1756481287867,459.0839,209.59,209.47,7.12]
[1756481288166,454.79,209.59,209.47,7.12]
[1756481288566,4.2945,209.55,209.47,7.12]
[1756481289664,7.49,209.54,209.42,4.297]
[1756481290056,126.32,209.56,209.41,7.12]
[1756481290261,328.45,209.59,209.45,7.12]
[1756481290466,126.3,209.58,209.45,7.12]
[1756481290966,126.3,209.58,209.49,4.2956]
[1756481291167,126.3,209.58,209.49,11.4156]
[1756481292165,454.73,209.59,209.49,11.4156]
[1756481293270,459.0239,209.59,209.49,4.2956]
[1756481293470,11.14149328,209.58,209.46,4.2962]
[1756481293665,7.49,209.57,209.46,4.2962]
[1756481294060,7.49,209.57,209.48,4.2959]
[1756481294466,7.49,209.57,209.49,4.2956]
[1756481295069,3.34829401,209.56,209.44,7.12]
[1756481295272,4.2945,209.56,209.46,4.2962]
[1756481295467,7.49,209.57,209.46,4.2962]
[1756481295772,7.49,209.55,209.44,7.12]
[1756481295975,126.26,209.54,209.44,7.12]
[1756481296768,11.14149328,209.48,209.37,7.12]
[1756481297071,137.07582966,209.47,209.32,66.8776]
[1756481297272,3.348045,209.46,209.33,7.12]
[1756481297471,133.73,209.47,209.36,4.2982]
[1756481297673,3.34917904,209.46,209.36,4.2982]
[1756481297874,133.73,209.47,209.36,4.2982]
[1756481298175,3.34870237,209.46,209.36,4.2982]
[1756481298368,133.73,209.47,209.36,4.2982]
[1756481298569,133.73,209.47,209.38,4.2978]
[1756481298770,133.73,209.47,209.37,7.12]
[1756481298974,4.2967,209.45,209.33,4.299]
[1756481299269,11.14149328,209.46,209.33,4.299]
[1756481299469,7.49,209.44,209.31,7.12]
[1756481299779,7.49,209.44,209.34,4.2987]
[1756481300373,7.49,209.49,209.33,7.12]
[1756481300569,129.590652,209.48,209.33,7.12]
[1756481300771,3.350652,209.47,209.33,7.12]
[1756481300966,126.24,209.48,209.33,7.12]
[1756481301162,10.8399913,209.47,209.33,7.12]
[1756481301366,3.3499913,209.46,209.33,7.12]
[1756481301574,7.49,209.47,209.36,4.2982]
[1756481301775,3.35119369,209.46,209.33,7.12]
[1756481302073,7.49,209.47,209.33,7.12]
[1756481302274,3.35081743,209.46,209.35,4.2985]
[1756481302479,7.49,209.47,209.35,4.2985]
[1756481302676,3.35302379,209.46,209.35,4.2985]
[1756481302975,4.2967,209.45,209.35,4.2985]
[1756481303581,7.49,209.47,209.35,73.9882]
[1756481303869,126.24,209.49,209.38,7.12]
[1756481304681,126.24,209.49,209.42,4.297]
[1756481304977,126.24,209.49,209.38,7.12]
[1756481305177,7.49,209.48,209.4,4.2976]
[1756481305374,7.49,209.48,209.34,7.12]
[1756481305574,133.71,209.48,209.34,7.12]
[1756481305780,133.71,209.48,209.35,66.8685]
[1756481306370,138.0061,209.48,209.39,4.2977]
[1756481306783,133.71,209.48,209.37,7.12]
[1756481307079,7.49,209.48,209.37,7.12]
[1756481307677,7.49,209.54,209.4,7.12]
[1756481307983,129.57289009,209.53,209.4,7.12]
[1756481308177,127.0509158,209.53,209.4,7.12]
[1756481309079,0.8309158,209.53,209.42,66.8457]
[1756481309381,320.96,209.59,209.47,66.83]
[1756481309576,7.49,209.65,209.52,73.9333]
[1756481309770,7.49,209.65,209.52,7.12]
[1756481309771,3.35344744,209.64,209.52,7.12]
[1756481309985,133.71,209.65,209.52,7.12]
[1756481310175,4.18430584,209.64,209.52,7.12]
[1756481310375,0.83046964,209.64,209.52,7.12]
[1756481311282,0.83046964,209.64,209.56,4.2941]
[1756481311778,7.49,209.7,209.6,11.4133]
[1756481312076,133.69,209.7,209.6,7.12]
[1756481312275,0.8302418,209.69,209.61,4.2931]
[1756481312580,0.8302418,209.69,209.6,7.12]
[1756481312976,0.8302418,209.69,209.62,4.2929]
[1756481313381,0.8302418,209.69,209.6,7.12]
[1756481313581,0.8302418,209.69,209.64,4.2927]
[1756481313782,7.49,209.68,209.6,7.12]
[1756481314181,7.49,209.68,209.62,4.2931]
[1756481314783,11.7819,209.68,209.54,7.12]
[1756481314982,7.49,209.68,209.54,7.12]
[1756481315584,7.49,209.64,209.48,7.12]
[1756481315786,126.16,209.63,209.5,66.8205]
[1756481315981,126.16,209.63,209.48,7.12]
[1756481316179,130.4529,209.63,209.53,4.2948]
[1756481316379,126.16,209.63,209.53,4.2948]
[1756481317684,126.16,209.63,209.52,7.67]
[1756481318484,126.16,209.63,209.55,4.2945]
[1756481319186,126.16,209.63,209.52,11.965]
[1756481319483,11.14149328,209.61,209.52,11.965]
[1756481319679,7.32,209.6,209.47,7.67]
[1756481319884,11.6135,209.6,209.48,4.2958]
[1756481320083,7.32,209.6,209.47,7.67]
[1756481321481,7.32,209.57,209.47,7.67]
[1756481321683,95.32,209.61,209.48,66.8257]
[1756481321882,95.32,209.61,209.51,7.67]
[1756481322081,99.6133,209.61,209.51,7.67]
[1756481322286,4.2933,209.61,209.51,7.67]
[1756481322687,144.56149328,209.62,209.53,4.2949]
[1756481322988,7.32,209.62,209.52,66.8113]
[1756481323183,7.32,209.62,209.51,7.67]
[1756481323386,7.32,209.62,209.46,74.5022]
[1756481323585,15.43539328,209.59,209.49,4.2957]
[1756481323782,11.14149328,209.59,209.47,66.8295]
[1756481324476,15.43519328,209.59,209.51,4.2953]
[1756481324881,7.32,209.6,209.5,7.67]
[1756481325485,7.32,209.6,209.46,7.67]
[1756481325686,11.14149328,209.59,209.46,7.67]
[1756481325988,11.14149328,209.59,209.48,4.2958]
[1756481325989,4.2941,209.58,209.48,4.2958]
[1756481326881,11.14149328,209.59,209.46,7.67]
[1756481327282,3.3572948,209.58,209.46,7.67]
[1756481327482,11.14149328,209.59,209.46,7.67]
[1756481327683,3.35765578,209.58,209.47,66.8298]
[1756481327883,11.14149328,209.59,209.46,7.67]
[1756481328078,7.32,209.57,209.46,7.67]
[1756481328278,3.35871844,209.56,209.46,7.67]
[1756481328486,3.35871844,209.55,209.46,7.67]
[1756481328686,7.32,209.57,209.46,7.67]
[1756481328987,18.46149328,209.55,209.41,7.67]
[1756481329187,3.35914697,209.54,209.41,7.67]
[1756481329482,7.32,209.5,209.36,74.5337]
[1756481329687,3.35914697,209.49,209.36,74.5343]
[1756481329886,7.32,209.5,209.36,74.5343]
[1756481329887,7.32,209.5,209.36,7.67]
[1756481330088,3.35869385,209.49,209.36,7.67]
[1756481330284,7.32,209.5,209.36,7.67]
[1756481330581,7.65442385,209.49,209.4,4.2974]
[1756481330886,3.35852385,209.48,209.4,4.2974]
[1756481331082,4.2959,209.49,209.4,4.2974]
[1756481331683,7.32,209.5,209.39,66.855]
[1756481331888,3.3558821,209.49,209.4,7.67]
[1756481332184,7.32,209.5,209.4,7.67]
[1756481332689,7.32,209.5,209.41,4.2973]
[1756481332690,11.6157,209.5,209.41,4.2973]
[1756481333188,7.32,209.5,209.4,74.5219]
[1756481333395,39.18,209.55,209.41,66.8488]
[1756481333592,3.35646428,209.54,209.41,66.8488]
[1756481333792,3.35646428,209.53,209.41,66.8488]
[1756481334087,3.35646428,209.52,209.41,66.8488]
[1756481334392,39.18,209.55,209.41,66.8488]
[1756481334582,7.65133892,209.54,209.45,4.2964]
[1756481334782,7.32,209.52,209.4,7.67]
[1756481335190,7.32,209.52,209.41,4.2974]
[1756481336092,7.6535315,209.51,209.41,4.2974]
[1756481336295,10.67588612,209.5,209.4,7.67]
[1756481336494,7.32,209.5,209.36,7.67]
[1756481336689,4.2966,209.46,209.36,7.67]
[1756481337197,133.36,209.51,209.37,7.67]
[1756481337395,7.32,209.49,209.37,7.67]
[1756481337589,3.35439447,209.48,209.37,7.67]
[1756481337784,7.32,209.49,209.37,7.67]
[1756481337993,3.35506689,209.48,209.37,7.67]
[1756481338193,7.32,209.49,209.3,7.67]
[1756481338390,7.32,209.47,209.3,7.67]
[1756481338796,7.32,209.54,209.36,11.14149328]
[1756481338994,3.35494708,209.53,209.37,7.67]
[1756481339295,53.4,209.54,209.37,7.67]
[1756481339500,3.3557689,209.53,209.37,7.67]
[1756481339794,53.4,209.54,209.37,7.67]
[1756481339999,3.35551885,209.53,209.37,7.67]
[1756481340194,10.67521757,209.52,209.37,7.67]
[1756481340395,7.32,209.52,209.37,7.67]
[1756481340793,7.32,209.52,209.41,4.2973]
[1756481340994,320.74,209.57,209.42,7.67]
[1756481341395,320.74,209.57,209.48,4.296]
[1756481341693,10.67842196,209.56,209.42,7.67]
[1756481341893,7.32,209.56,209.42,7.67]
[1756481342105,7.32,209.56,209.47,4.2962]
[1756481342789,7.32,209.56,209.42,7.67]
[1756481343106,3.35936318,209.55,209.42,7.67]
[1756481343302,7.32,209.54,209.42,11.9673]
[1756481343794,126.0,209.53,209.45,4.2965]
[1756481343992,7.32,209.6,209.46,74.5042]
[1756481344195,3.35954238,209.59,209.5,7.67]
[1756481344500,7.32,209.6,209.5,7.67]
[1756481345091,7.32,209.6,209.49,66.8248]
[1756481345092,7.32,209.6,209.44,74.5107]
[1756481345404,7.32,209.57,209.39,74.5249]
[1756481345601,3.36048017,209.56,209.4,7.67]
[1756481345791,3.36048017,209.55,209.4,7.67]
[1756481346102,7.32,209.57,209.44,7.67]
[1756481346495,4.2946,209.56,209.45,4.2965]
[1756481346892,7.32,209.57,209.45,4.2965]
[1756481347101,3.36206273,209.56,209.44,7.67]
[1756481347300,3.36248065,209.55,209.44,11.9668]
[1756481347506,7.29,209.57,209.44,7.67]
[1756481347694,3.3621931,209.56,209.44,7.67]
[1756481347895,4.2944,209.56,209.47,4.2962]
[1756481348096,4.2944,209.56,209.44,7.67]
[1756481348601,103.63149328,209.6,209.46,74.1339]
[1756481348898,3.36541875,209.59,209.46,7.3]
[1756481349099,3.36541875,209.58,209.46,7.3]
[1756481349305,7.29,209.55,209.42,7.3]
[1756481349802,7.29,209.55,209.43,66.8438]
[1756481350195,7.29,209.55,209.45,7.3]
[1756481350799,7.66301158,209.54,209.45,11.5966]
[1756481351000,4.295,209.54,209.45,11.5966]
[1756481351801,7.29,209.52,209.4,7.3]
[1756481352000,18.43149328,209.52,209.4,7.3]
[1756481352709,4.2958,209.5,209.42,4.2972]
[1756481353001,7.29,209.58,209.45,66.8381]
[1756481353305,3.37018332,209.57,209.49,4.2957]
[1756481353497,3.37018332,209.56,209.49,4.2957]
[1756481353697,7.29,209.58,209.49,4.2957]
[1756481353902,7.29,209.56,209.47,4.2963]
[1756481354203,7.29,209.56,209.39,66.857]
[1756481354204,3.37011986,209.55,209.4,7.3]
[1756481354405,11.5854,209.52,209.4,7.3]
[1756481354899,3.36980277,209.51,209.4,66.8539]
[1756481355097,11.14149328,209.56,209.44,7.3]
[1756481355098,18.43149328,209.56,209.44,7.3]
[1756481355305,3.37052528,209.55,209.44,7.3]
[1756481355498,3.37052528,209.54,209.44,7.3]
[1756481355699,4.295,209.54,209.44,7.3]
[1756481355893,18.43149328,209.56,209.44,7.3]
[1756481356094,3.37131429,209.55,209.34,7.3]
[1756481356393,7.29,209.47,209.34,7.3]
[1756481356800,4.2967,209.46,209.37,4.2982]
[1756481357202,7.29,209.47,209.37,4.2982]
[1756481357394,3.3743042,209.46,209.37,4.2982]
[1756481357593,7.29,209.47,209.37,4.2982]
[1756481358000,11.5864,209.47,209.37,4.2982]
[1756481358505,3.37493509,209.46,209.35,4.2987]
[1756481358706,3.37484603,209.45,209.35,4.2987]
[1756481359007,3.37489129,209.44,209.34,7.3]
[1756481359196,3.37489129,209.44,209.34,11.5988]
[1756481359197,10.66489129,209.43,209.34,11.5988]
[1756481359404,7.29,209.43,209.34,11.5988]
[1756481360208,7.29,209.5,209.34,7.3]
[1756481360402,129.313448,209.49,209.35,66.8699]
[1756481360707,3.373448,209.48,209.36,7.3]
[1756481360907,3.373448,209.48,209.4,4.2976]
[1756481361406,3.373448,209.48,209.38,66.8603]
[1756481361706,3.373448,209.47,209.38,66.8603]
[1756481361916,7.29,209.5,209.41,4.2975]
[1756481362102,3.37485627,209.49,209.41,4.2975]
[1756481362408,3.37485627,209.48,209.41,4.2975]
[1756481362607,3.37660917,209.47,209.39,4.2979]
[1756481362910,7.29,209.5,209.39,4.2979]
[1756481363108,4.2964,209.47,209.39,4.2979]
[1756481363704,4.2959,209.49,209.36,7.3]
[1756481363902,4.2959,209.49,209.35,66.869]
[1756481363903,3.37840583,209.48,209.38,7.3]
[1756481364107,3.37840583,209.47,209.38,7.3]
[1756481364307,3.38031337,209.46,209.38,7.3]
[1756481364507,4.2959,209.49,209.38,7.3]
[1756481364709,3.3803154,209.48,209.41,4.2974]
[1756481364906,3.3803154,209.47,209.38,7.3]
[1756481365511,7.29,209.45,209.29,136.23312198]
[1756481365715,7.29,209.45,209.32,7.3]
[1756481366010,3.37886257,209.44,209.34,4.2989]
[1756481366206,7.29,209.42,209.32,7.3]
[1756481366404,3.37886257,209.41,209.26,7.3]
[1756481366604,7.29,209.35,209.23,4.3012]
[1756481366808,7.29,209.35,209.21,7.3]
[1756481367021,3.37364315,209.34,209.23,66.9065]
[1756481367207,4.2982,209.38,209.29,7.3]
[1756481367409,85.39891426,209.37,209.29,7.3]
[1756481367605,82.04,209.37,209.29,7.3]
[1756481368214,125.92,209.38,209.29,7.3]
[1756481368409,3.36123475,209.37,209.29,7.3]
[1756481368609,125.92,209.38,209.29,7.3]
[1756481368815,3.3609813,209.37,209.29,11.5998]
[1756481369118,4.2983,209.38,209.29,11.5998]
[1756481369322,3.35885883,209.37,209.29,11.5998]
[1756481369516,7.29,209.37,209.26,4.3004]
[1756481369822,72.14992828,209.44,209.25,7.3]
[1756481369823,192.71476967,209.43,209.25,7.3]
[1756481370026,7.29,209.39,209.31,4.2994]
[1756481370321,3.35880315,209.38,209.28,7.3]
[1756481371127,129.29880315,209.38,209.29,4.2998]
[1756481371422,125.94,209.38,209.28,7.3]
[1756481371622,133.23,209.39,209.28,7.3]
[1756481371824,3.35782306,209.38,209.28,7.3]
[1756481372124,133.23,209.39,209.32,4.2993]
[1756481372319,3.35658323,209.38,209.32,4.2993]
[1756481372520,133.23,209.39,209.32,4.2993]
[1756481372722,3.35708122,209.38,209.32,4.2993]
[1756481372922,133.23,209.39,209.32,4.2993]
[1756481373122,3.35626759,209.38,209.32,4.2993]
[1756481373425,133.23,209.39,209.32,4.2993]
[1756481373631,3.35615134,209.38,209.32,4.2993]
[1756481373925,7.29,209.39,209.32,4.2993]
[1756481374126,3.35664591,209.38,209.32,4.2993]
[1756481374327,133.23,209.39,209.32,4.2993]
[1756481374533,3.35550689,209.38,209.32,4.2993]
[1756481374829,133.23,209.39,209.32,4.2993]
[1756481375014,3.35707093,209.38,209.32,4.2993]
[1756481375216,133.23,209.39,209.32,4.2993]
[1756481375420,11.14149328,209.38,209.19,66.9207]
[1756481375617,125.94,209.39,209.17,7.3]
[1756481375618,11.14149328,209.3,209.17,7.3]
[1756481375816,139.42344298,209.29,209.17,7.3]
[1756481376025,7.29,209.27,209.17,7.3]
[1756481377024,7.29,209.27,209.08,11.14149328]
[1756481377025,4.3009,209.25,209.12,11.7233]
[1756481377731,4.3009,209.25,209.14,4.303]
[1756481377931,4.3009,209.25,209.12,7.42]
[1756481378131,4.3009,209.25,209.13,4.3033]
[1756481379331,4.3009,209.25,209.12,7.42]
[1756481379332,11.14149328,209.22,209.12,7.42]
[1756481379536,96.52,209.21,209.12,7.42]
[1756481379730,104.29,209.21,209.12,7.42]
[1756481381035,7.77,209.21,209.12,7.42]
[1756481381430,34.8,209.2,209.08,4.3042]
[1756481382027,7.77,209.21,209.1,11.7239]
[1756481382339,34.68,209.2,209.1,11.7239]
[1756481384931,7.77,209.21,209.1,7.42]
[1756481385628,7.77,209.21,209.1,74.3694]
[1756481385832,7.77,209.21,209.1,7.42]
[1756481386033,12.0718,209.21,209.12,4.3035]
[1756481386637,136.05,209.21,209.13,4.3031]
[1756481389036,7.77,209.19,209.04,78.10939328]
[1756481389238,7.77,209.19,209.05,7.42]
[1756481389431,7.77,209.19,209.06,66.9632]
[1756481389630,7.77,209.19,209.11,4.3035]
[1756481389934,135.71,209.19,209.1,7.42]
[1756481390841,135.71,209.19,209.12,4.3033]
[1756481391535,135.71,209.19,209.1,7.42]
[1756481391939,135.71,209.19,209.11,4.3035]
[1756481392337,135.71,209.19,209.04,66.9679]
[1756481392540,135.71,209.19,209.05,7.42]
[1756481392931,135.71,209.19,208.98,7.42]
[1756481392932,7.77,209.15,208.98,7.42]
[1756481393139,135.35,209.14,209.0,7.42]
[1756481393545,4.3042,209.09,209.0,7.42]
[1756481393736,7.77,209.11,208.98,4.3063]
[1756481394242,12.0749,209.06,208.96,11.7268]
[1756481394544,7.77,209.06,208.96,7.42]
[1756481394745,4.3053,209.04,208.96,7.42]
[1756481395244,127.62,209.04,208.96,7.42]
[1756481395638,7.77,209.06,208.96,7.42]
[1756481395837,41.94,209.08,208.96,7.42]
[1756481396041,84.6,209.08,208.96,74.4155]
[1756481396345,124.92,209.08,208.96,7.42]
[1756481396534,132.69,209.08,208.96,74.4154]
[1756481396739,7.77,209.08,208.99,7.42]
[1756481396941,7.77,209.13,209.0,66.9829]
[1756481397142,127.46,209.12,209.01,7.42]
[1756481397434,7.77,209.13,209.03,66.9729]
[1756481397435,135.21,209.13,209.03,66.9729]
[1756481397640,7.77,209.13,209.03,66.9729]
[1756481397846,7.77,209.13,209.01,7.42]
[1756481398139,12.0735,209.13,209.04,4.305]
[1756481398540,7.77,209.13,209.04,4.305]
[1756481399546,12.0735,209.13,209.04,4.305]
[1756481400135,3.38521451,209.12,209.06,4.3048]
[1756481400335,7.77,209.13,209.04,7.42]
[1756481400543,78.08109328,209.14,208.95,66.9977]
[1756481400738,7.77,209.12,208.99,7.42]
[1756481400939,388.1397,209.2,208.98,66.9893]
[1756481400940,7.77,209.17,209.04,66.9705]
[1756481401144,3.38660922,209.16,209.05,7.42]
[1756481402045,3.38660922,209.16,209.1,4.3038]
[1756481402340,3.38660922,209.16,209.05,7.42]
[1756481402544,7.77,209.15,209.05,7.42]
[1756481402844,3.38660922,209.16,208.97,7.42]
[1756481402845,7.77,209.13,208.97,7.42]
[1756481403043,7.77,209.13,209.04,4.305]
[1756481403247,3.39085317,209.12,209.01,7.42]
[1756481403443,326.52792828,209.2,209.08,4.3042]
[1756481403444,81.38,209.17,209.08,4.3042]
[1756481403644,3.39059936,209.16,209.0,7.42]
[1756481403842,18.91149328,209.18,209.0,7.42]
[1756481404144,3.3903691,209.17,209.0,7.42]
[1756481404345,3.3903691,209.16,209.0,7.42]
[1756481404546,7.77,209.18,209.04,7.42]
[1756481404747,7.77,209.25,209.08,7.42]
[1756481404945,7.77,209.25,209.13,7.42]
[1756481404946,3.38990637,209.24,209.13,7.42]
[1756481405137,3.38990637,209.23,209.13,7.42]
[1756481405342,7.77,209.25,209.13,7.42]
[1756481405541,19.33,209.31,209.13,7.42]
[1756481405743,3.38745557,209.3,209.21,4.3015]
[1756481405945,3.38745557,209.29,209.21,4.3015]
[1756481406245,13.07792828,209.37,209.27,7.42]
[1756481406545,7.77,209.35,209.22,7.42]
[1756481406744,3.38944726,209.34,209.22,7.42]
[1756481406950,3.38944726,209.33,209.22,7.42]
[1756481407150,7.77,209.35,209.22,7.42]
[1756481407345,3.38628824,209.34,209.28,4.3002]
[1756481407650,7.6,209.37,209.26,7.28]
[1756481407840,3.38614631,209.36,209.26,7.28]
[1756481408045,3.38614631,209.35,209.26,7.28]
[1756481408245,3.38614631,209.34,209.26,7.28]
[1756481408445,4.2986,209.36,209.26,7.28]
[1756481408640,3.38812662,209.35,209.2,11.14149328]
[1756481408846,66.8877,209.3,209.14,7.28]
[1756481409042,74.4938,209.28,209.14,7.28]
[1756481409244,3.38812662,209.27,209.14,7.28]
[1756481409447,3.38812662,209.26,209.14,7.28]
[1756481409648,7.6,209.24,209.14,7.28]
[1756481409942,3.38812662,209.23,209.14,7.28]
[1756481410148,3.38812662,209.23,209.08,7.28]
[1756481410542,3.38812662,209.22,209.08,7.28]
[1756481410742,3.38812662,209.21,209.08,7.28]
[1756481410938,3.38812662,209.21,209.09,4.304]
[1756481410939,10.98812662,209.2,209.09,4.304]
[1756481411142,3.38812662,209.19,209.09,4.304]
[1756481411444,3.38812662,209.18,209.03,74.2506]
[1756481411647,3.38812662,209.17,209.03,74.2506]
[1756481411946,3.38812662,209.17,209.02,11.14149328]
[1756481411947,3.38812662,209.16,209.05,7.28]
[1756481412247,3.39970338,209.15,209.05,7.28]
[1756481412443,66.9226,209.19,209.05,11.5849]
[1756481412649,7.6,209.17,209.05,4.3049]
[1756481412946,11.14149328,209.12,209.01,7.28]
[1756481413147,3.39970424,209.11,209.04,66.97]
[1756481413343,3.39970424,209.11,209.02,66.977]
[1756481413344,18.74149328,209.2,209.08,66.9572]
[1756481413649,3.40029683,209.19,209.12,4.3035]
[1756481413848,3.40029683,209.18,209.12,4.3035]
[1756481414052,7.6,209.2,209.13,7.28]
[1756481414246,3.40114443,209.19,209.13,11.5832]
[1756481414453,7.6,209.27,209.16,7.28]
[1756481414750,4.3009,209.25,209.16,7.28]
[1756481415050,3.40048828,209.24,209.16,7.28]
[1756481415252,3.40048828,209.23,209.16,7.28]
[1756481415547,7.6,209.27,209.16,74.2116]
[1756481415849,7.9828986,209.33,209.2,74.1993]
[1756481415850,134.46,209.33,209.2,74.1993]
[1756481416050,3.40143349,209.32,209.2,74.1993]
[1756481416256,3.40143349,209.31,209.2,7.28]
[1756481416549,3.40143349,209.3,209.22,4.3014]
[1756481416749,3.40143349,209.29,209.22,4.3014]
[1756481416950,3.40143349,209.28,209.22,4.3014]
[1756481417247,3.40143349,209.28,209.2,7.28]
[1756481417248,3.40143349,209.27,209.2,4.3019]
[1756481417548,3.40143349,209.27,209.18,66.9244]
[1756481417549,321.28,209.35,209.24,74.1865]
[1756481417748,3.40389651,209.34,209.24,74.1865]
[1756481417953,3.40389651,209.33,209.24,74.1865]
[1756481418248,3.40389651,209.32,209.24,74.1865]
[1756481418455,3.40389651,209.31,209.24,7.28]
[1756481418647,328.88,209.35,209.19,7.28]
[1756481418648,3.40389651,209.3,209.19,7.28]
[1756481418851,3.40389651,209.29,209.2,66.9187]
[1756481419053,328.88,209.35,209.24,4.3011]
[1756481419250,3.40472445,209.34,209.2,66.9187]
[1756481419548,328.88,209.35,209.19,7.28]
[1756481419549,3.40472445,209.33,209.23,7.28]
[1756481419748,340.02149328,209.35,209.23,7.28]
[1756481419749,3.40472445,209.32,209.23,11.5811]
[1756481419950,3.40472445,209.31,209.23,11.5811]
[1756481420150,3.40472445,209.3,209.23,11.5811]
[1756481420351,3.40775649,209.29,209.23,7.28]
[1756481420546,466.58149328,209.35,209.23,7.28]
[1756481420748,4.2993,209.33,209.23,7.28]
[1756481420945,11.14149328,209.31,209.15,66.9353]
[1756481421147,3.40781549,209.3,209.17,7.28]
[1756481421348,3.40781549,209.29,209.17,7.28]
[1756481421550,3.40781549,209.28,209.17,7.28]
[1756481421744,3.40781549,209.27,209.17,7.28]
[1756481421950,7.70851549,209.26,209.17,7.28]
[1756481422148,3.40781549,209.25,209.17,7.28]
[1756481422656,18.74149328,209.27,209.1,4.3038]
[1756481422657,7.6,209.22,209.1,4.3038]
[1756481422953,3.40781549,209.21,209.1,4.3038]
[1756481423152,3.40781549,209.21,209.12,4.3035]
[1756481423554,3.40781549,209.21,209.08,74.2364]
[1756481423758,7.6,209.28,209.15,7.28]
[1756481423956,3.4088334,209.27,209.15,7.28]
[1756481424252,11.14149328,209.25,209.15,7.28]
[1756481424457,3.4088334,209.24,209.15,7.28]
[1756481424854,3.4088334,209.23,209.15,7.28]
[1756481425056,108.12,209.27,209.15,7.28]
[1756481425355,3.40886692,209.26,209.15,7.28]
[1756481425560,108.12,209.27,209.15,7.28]
[1756481425561,3.40886692,209.25,209.15,7.28]